bitfinex-derivatives/quotes_SOLF0:USTF0_20260104
["timestamp","ask_amount","ask_price","bid_price","bid_amount"]
[1767548135038,0.32730148,135.25,135.2,0.32997734]
[1767548135245,1.68194429,135.26,135.2,0.32997734]
[1767548135440,0.30740805,135.27,135.2,0.32997734]
[1767548136547,0.30740805,135.27,135.21,6.6592]
[1767548136746,0.30740805,135.27,135.21,6.98917734]
[1767548145947,0.30740805,135.27,135.21,0.32997734]
[1767548146153,0.30740805,135.26,135.21,0.32997734]
[1767548146352,1.98935234,135.26,135.21,0.32997734]
[1767548147256,8.64615234,135.26,135.21,0.32997734]
[1767548147451,6.96420805,135.26,135.21,0.32997734]
[1767548147757,1.68194429,135.25,135.21,0.32997734]
[1767548151061,8.64665234,135.25,135.19,0.32997734]
[1767548152261,0.30740805,135.24,135.19,0.32997734]
[1767548153360,6.96540805,135.24,135.19,0.32997734]
[1767548153561,191.22202884,135.28,135.16,87.38]
[1767548153562,1.98935234,135.21,135.16,87.38]
[1767548153762,1.98935234,135.21,135.15,0.32997734]
[1767548153960,1.98935234,135.21,135.15,6.99217734]
[1767548155966,1.98935234,135.21,135.16,0.32997734]
[1767548157366,1.68194429,135.21,135.16,0.32997734]
[1767548160273,8.67010311,135.21,135.16,0.32997734]
[1767548160771,0.32885882,135.2,135.13,6.98396293]
[1767548160964,0.32885882,135.2,135.13,0.32126293]
[1767548162468,2.01080311,135.19,135.13,0.32126293]
[1767548162769,2.01080311,135.17,135.11,0.32126293]
[1767548163765,2.01080311,135.15,135.09,0.32126293]
[1767548165770,0.32885882,135.14,135.08,6.6654]
[1767548168378,0.32885882,135.16,135.1,0.32126293]
[1767548169377,0.32885882,135.16,135.1,6.98576293]
[1767548170073,0.32885882,135.15,135.08,6.98646293]
[1767548170378,0.32885882,135.14,135.08,6.98646293]
[1767548170577,0.32885882,135.13,135.08,0.32126293]
[1767548170772,0.32885882,135.13,135.07,12.46522159]
[1767548171979,0.32885882,135.13,135.07,19.13132159]
[1767548172273,0.32885882,135.12,135.07,19.13132159]
[1767548180079,0.32885882,135.12,135.07,19.45258452]
[1767548187189,6.6633,135.13,135.08,0.32126293]
[1767548187674,0.32885882,135.16,135.09,0.37248443]
[1767548187880,0.32885882,135.18,135.09,0.37248443]
[1767548188384,0.32885882,135.18,135.09,0.32126293]
[1767548188683,6.99055882,135.17,135.1,6.98596293]
[1767548189288,6.99055882,135.17,135.11,0.32126293]
[1767548193389,6.6618,135.16,135.11,0.32126293]
[1767548202097,6.98677673,135.16,135.11,0.32126293]
[1767548203196,6.98677673,135.16,135.11,6.98536293]
[1767548203197,0.32497673,135.16,135.11,6.98536293]
[1767548203498,0.32497673,135.18,135.12,0.32552735]
[1767548204203,0.32497673,135.18,135.13,0.32552735]
[1767548204892,94.36142884,135.19,135.13,0.32552735]
[1767548205196,87.76497673,135.19,135.13,0.32552735]
[1767548205899,0.32497673,135.19,135.13,0.32552735]
[1767548206602,0.32497673,135.19,135.14,6.6627]
[1767548209802,0.32497673,135.19,135.13,6.98862735]
[1767548214300,0.32497673,135.19,135.13,6.6631]
[1767548214505,0.32497673,135.19,135.14,0.32552735]
[1767548230817,6.98527673,135.19,135.14,0.32552735]
[1767548231816,6.99377231,135.18,135.12,6.98088172]
[1767548233919,6.99377231,135.18,135.12,0.31728172]
[1767548235219,6.99377231,135.18,135.12,6.98088172]
[1767548235417,0.33287231,135.18,135.12,6.98088172]
[1767548236218,0.33287231,135.18,135.13,0.31728172]
[1767548238324,6.99367231,135.18,135.13,0.31728172]
[1767548245225,6.6608,135.18,135.12,6.6636]
[1767548245429,0.33287231,135.17,135.12,6.98088172]
[1767548247333,0.33287231,135.16,135.1,6.98148172]
[1767548248632,0.33287231,135.15,135.1,6.98148172]
[1767548250224,0.33287231,135.15,135.1,0.31728172]
[1767548250420,0.3234134,135.14,135.08,6.98984435]
[1767548250627,0.3234134,135.14,135.07,0.32464435]
[1767548250833,0.3234134,135.16,135.08,0.32464435]
[1767548251520,6.9856134,135.16,135.1,6.6646]
[1767548252633,0.3234134,135.16,135.1,6.98924435]
[1767548252826,0.3234134,135.16,135.11,0.32464435]
[1767548256849,6.9851134,135.16,135.11,0.32464435]
[1767548261945,0.3234134,135.16,135.11,6.98884435]
[1767548266250,0.3234134,135.16,135.11,0.32464435]
[1767548270353,6.9851134,135.16,135.11,0.32464435]
[1767548279264,0.3234134,135.16,135.11,0.32464435]
[1767548280266,0.3234134,135.16,135.11,6.98864435]
[1767548284275,0.3234134,135.16,135.11,0.32464435]
[1767548285571,0.26072884,135.18,135.07,0.33136082]
[1767548285572,0.3300302,135.14,135.07,0.33136082]
[1767548286679,6.9927302,135.14,135.08,0.33136082]
[1767548296283,6.9927302,135.14,135.08,6.99696082]
[1767548297781,0.3300302,135.14,135.08,6.99696082]
[1767548302384,0.3300302,135.14,135.09,6.6651]
[1767548303284,0.3300302,135.14,135.08,0.33136082]
[1767548305085,0.3300302,135.14,135.08,6.99686082]
[1767548305286,0.3300302,135.14,135.09,0.33136082]
[1767548307787,6.9928302,135.14,135.09,0.33136082]
[1767548316298,0.3300302,135.14,135.09,0.33136082]
[1767548324016,6.9929302,135.14,135.09,0.33136082]
[1767548329624,0.30558959,135.12,135.07,0.32841075]
[1767548330424,0.30558959,135.12,135.07,6.99451075]
[1767548332228,0.30558959,135.12,135.08,6.6657]
[1767548338427,6.6625,135.15,135.08,6.6657]
[1767548338631,0.30558959,135.14,135.08,6.99411075]
[1767548345842,6.96838959,135.14,135.08,6.99411075]
[1767548364751,0.30558959,135.14,135.09,6.6651]
[1767548371652,0.30558959,135.14,135.08,6.99401075]
[1767548371860,6.96828959,135.14,135.08,6.99401075]
[1767548373564,6.96828959,135.14,135.09,0.33306603]
[1767548380468,6.6627,135.14,135.09,0.33306603]
[1767548380672,0.30966135,135.18,135.12,0.31379426]
[1767548380873,0.30966135,135.21,135.12,0.31379426]
[1767548381171,0.30966135,135.21,135.15,0.31379426]
[1767548381172,5.98790383,135.2,135.15,0.31379426]
[1767548381374,0.30966135,135.2,135.15,0.31379426]
[1767548385467,0.30966135,135.19,135.13,0.31379426]
[1767548385872,1.68381705,135.18,135.13,0.31379426]
[1767548386374,1.68381705,135.18,135.13,6.97699426]
[1767548386575,0.30966135,135.19,135.13,6.97699426]
[1767548387375,0.30966135,135.19,135.13,0.31379426]
[1767548390777,0.30966135,135.19,135.1,87.44]
[1767548390778,0.30966135,135.17,135.11,0.31379426]
[1767548392676,0.30966135,135.17,135.11,6.97799426]
[1767548396175,0.30966135,135.17,135.12,0.31379426]
[1767548398482,6.97096135,135.17,135.12,0.31379426]
[1767548403287,0.33663396,135.16,135.1,95.78841705]
[1767548403503,0.33663396,135.15,135.08,0.30849665]
[1767548403985,6.99943396,135.14,135.08,0.30849665]
[1767548404382,6.99943396,135.14,135.08,1.9923137]
[1767548405094,6.6633,135.13,135.08,1.9923137]
[1767548406289,6.6633,135.13,135.08,0.30849665]
[1767548409496,6.99933396,135.14,135.08,6.97409665]
[1767548426515,6.99983396,135.13,135.07,181.71922208]
[1767548426812,0.33663396,135.12,135.07,181.71922208]
[1767548427010,0.33663396,135.12,135.05,87.42]
[1767548427206,0.33663396,135.12,135.05,87.72849665]
[1767548428614,7.00043396,135.12,135.05,94.39539665]
[1767548432317,7.00043396,135.12,135.06,2.01189769]
[1767548432520,7.00043396,135.12,135.06,0.32808064]
[1767548438426,7.00043396,135.12,135.06,6.99458064]
[1767548438626,7.00043396,135.12,135.07,0.32129057]
[1767548439626,0.33663396,135.12,135.07,0.32129057]
[1767548460654,7.00033396,135.12,135.07,0.32129057]
[1767548463945,6.6642,135.11,135.07,0.32129057]
[1767548464340,0.33663396,135.12,135.07,0.32129057]
[1767548465554,7.00033396,135.12,135.07,0.32129057]
[1767548465851,0.31734762,135.11,135.05,94.4016897]
[1767548467255,0.31734762,135.11,135.06,0.3145897]
[1767548467554,6.98164762,135.11,135.06,0.3145897]
[1767548470363,0.31734762,135.1,135.05,87.42]
[1767548470660,106.5312797,135.15,135.04,0.3145897]
[1767548470661,0.31734762,135.09,135.04,0.3145897]
[1767548470859,0.31734762,135.09,135.03,178.17299763]
[1767548471057,0.31734762,135.09,135.03,178.48758733]
[1767548471554,0.31734762,135.08,135.03,178.48758733]
[1767548472151,0.31734762,135.08,135.03,178.17299763]
[1767548472558,0.31734762,135.07,135.03,178.17299763]
[1767548474560,0.31734762,135.07,135.01,87.46]
[1767548474865,0.31734762,135.07,135.01,87.7745897]
[1767548475260,6.98354762,135.07,135.01,87.7745897]
[1767548477261,0.31734762,135.07,135.01,87.7745897]
[1767548481262,6.98354762,135.07,135.01,87.7745897]
[1767548483566,0.31734762,135.06,135.01,0.3145897]
[1767548484658,6.98404762,135.06,135.01,0.3145897]
[1767548484863,0.31734762,135.06,135.01,0.3145897]
[1767548485058,0.31734762,135.06,134.98,1.60333539]
[1767548485371,0.31734762,135.03,134.95,0.3145897]
[1767548485575,0.31734762,135.03,134.96,0.3145897]
[1767548485773,6.98564762,135.03,134.96,0.3145897]
[1767548486273,0.31734762,135.03,134.96,0.3145897]
[1767548487663,6.6687,135.02,134.96,0.3145897]
[1767548488075,6.98604762,135.02,134.96,0.3145897]
[1767548488274,0.31734762,135.01,134.96,0.3145897]
[1767548488964,0.31734762,135.01,134.94,0.3145897]
[1767548490574,6.6701,134.99,134.94,0.3145897]
[1767548491674,7.00301433,135.0,134.94,0.3145897]
[1767548492274,0.33341433,135.0,134.94,0.3145897]
[1767548493478,0.33341433,135.0,134.94,6.9871897]
[1767548494576,0.33341433,135.0,134.94,8.67431503]
[1767548496574,0.33341433,135.0,134.95,0.32981281]
[1767548497576,0.33341433,135.0,134.96,6.6716]
[1767548499482,0.33341433,135.0,134.95,0.32981281]
[1767548506486,0.33232003,135.02,134.96,2.01693814]
[1767548506879,6.6682,135.03,134.99,0.32981281]
[1767548507186,0.33232003,135.06,134.99,0.32981281]
[1767548508588,7.00002003,135.04,134.99,0.32981281]
[1767548514503,0.33232003,135.02,134.96,0.32981281]
[1767548514890,7.00112003,135.02,134.96,0.32981281]
[1767548517898,7.00112003,135.02,134.96,7.00141281]
[1767548518204,0.33232003,135.01,134.96,0.32981281]
[1767548519198,6.6688,135.02,134.97,0.37749293]
[1767548519404,7.00052003,135.03,134.97,0.37749293]
[1767548519905,0.33232003,135.03,134.98,0.32981281]
[1767548521804,0.33232003,135.03,134.98,7.00041281]
[1767548522109,0.57039877,135.05,134.99,0.33642608]
[1767548522298,0.30966993,135.05,134.99,0.33642608]
[1767548523006,6.97686993,135.05,134.99,7.00642608]
[1767548523207,0.30966993,135.04,134.99,7.00642608]
[1767548525401,0.30966993,135.04,134.97,6.6706]
[1767548525705,0.30966993,135.04,134.97,7.00702608]
[1767548527904,0.30966993,135.03,134.97,0.33642608]
[1767548528201,0.30966993,135.03,134.95,7.00802608]
[1767548529207,0.26072884,135.05,134.95,7.00802608]
[1767548529208,0.30966993,135.01,134.95,7.00802608]
[1767548530404,0.30966993,135.01,134.96,0.33642608]
[1767548535422,6.6687,135.02,134.96,0.33642608]
[1767548535423,6.6687,135.02,134.97,0.33642608]
[1767548536521,6.97776993,135.03,134.97,7.00752608]
[1767548536716,0.30966993,135.03,134.98,0.33642608]
[1767548539222,0.30966993,135.03,134.98,7.00702608]
[1767548542319,0.30966993,135.05,134.99,7.00652608]
[1767548543324,0.30966993,135.05,134.99,0.33642608]
[1767548545527,0.30966993,135.04,134.99,0.33642608]
[1767548548330,6.97686993,135.05,134.99,0.33642608]
[1767548550226,0.30966993,135.04,134.99,0.33642608]
[1767548554832,6.97736993,135.04,134.99,0.33642608]
[1767548556334,0.3206036,135.03,134.96,0.33031593]
[1767548556526,0.3206036,135.03,134.97,7.00141593]
[1767548557434,0.3206036,135.03,134.98,0.33031593]
[1767548566240,0.3206036,135.03,134.98,7.00071593]
[1767548578859,0.3206036,135.03,134.98,0.33031593]
[1767548579158,0.3206036,135.03,134.97,6.6711]
[1767548579159,0.3206036,135.02,134.97,6.6711]
[1767548579659,0.3206036,135.02,134.97,7.00141593]
[1767548580461,0.3206036,135.02,134.94,0.31990055]
[1767548581055,0.31688421,135.0,134.94,0.31990055]
[1767548581960,6.98658421,135.0,134.94,0.31990055]
[1767548586859,0.31688421,134.99,134.94,0.31990055]
[1767548594771,6.98698421,134.99,134.94,0.31990055]
[1767548594975,0.31688421,134.99,134.94,0.31990055]
[1767548604476,6.98698421,134.99,134.94,0.31990055]
[1767548605683,0.31688421,134.98,134.92,194.96620179]
[1767548605983,0.31688421,134.98,134.92,6.99350055]
[1767548608185,0.31688421,134.98,134.93,0.31990055]
[1767548609282,6.98768421,134.98,134.93,0.31990055]
[1767548615293,0.31688421,134.98,134.93,0.31990055]
[1767548616695,0.31688421,134.98,134.93,6.99290055]
[1767548619804,0.31688421,134.98,134.93,6.673]
[1767548622291,0.31688421,134.98,134.92,0.32101584]
[1767548626394,6.98758421,134.98,134.92,0.32101584]
[1767548627196,0.32203073,134.99,134.91,0.32101584]
[1767548627598,6.6721,134.95,134.91,0.32101584]
[1767548627800,0.32203073,134.95,134.89,173.40537226]
[1767548628596,6.6726,134.94,134.89,173.40537226]
[1767548629091,0.32203073,134.93,134.87,0.32101584]
[1767548629298,6.99543073,134.93,134.87,0.32101584]
[1767548629699,6.99543073,134.93,134.87,2.00876554]
[1767548630609,6.99543073,134.93,134.88,0.32101584]
[1767548631609,213.5606,134.97,134.86,30.29457425]
[1767548631610,6.99453073,134.95,134.89,2.00876554]
[1767548636214,0.32203073,134.95,134.89,8.68376554]
[1767548638506,0.32203073,134.95,134.89,6.99601584]
[1767548638707,0.32203073,134.95,134.89,8.68376554]
[1767548641021,6.6716,134.96,134.9,0.31669528]
[1767548641218,6.99063519,134.96,134.9,0.31669528]
[1767548642117,0.31903519,134.95,134.9,0.31669528]
[1767548646832,6.99123519,134.95,134.9,0.31669528]
[1767548656135,0.31903519,134.95,134.9,0.31669528]
[1767548656927,87.54,134.97,134.9,0.31669528]
[1767548657131,87.85903519,134.97,134.9,0.31669528]
[1767548657534,94.53013519,134.97,134.9,6.99119528]
[1767548657740,87.85903519,134.97,134.91,0.31669528]
[1767548658540,87.85903519,134.97,134.91,6.99069528]
[1767548659341,87.85903519,134.97,134.92,0.31669528]
[1767548662437,87.85903519,134.97,134.92,6.99019528]
[1767548666948,87.85903519,134.97,134.93,6.6731]
[1767548669446,0.31903519,134.97,134.93,6.6731]
[1767548672338,88.13629721,134.99,134.94,6.6726]
[1767548672544,0.31556837,134.97,134.91,0.31770208]
[1767548673750,0.31556837,134.97,134.93,6.6731]
[1767548674250,0.31556837,134.97,134.92,0.31079177]
[1767548683662,0.31556837,134.97,134.92,6.98439177]
[1767548688664,6.98676837,134.97,134.92,0.31079177]
[1767548695470,6.98676837,134.97,134.91,6.674]
[1767548695665,0.33494819,134.96,134.91,6.674]
[1767548696166,0.33494819,134.96,134.91,6.98479177]
[1767548702175,6.6712,134.97,134.92,0.32976057]
[1767548702770,6.99405315,134.97,134.92,0.32976057]
[1767548705076,0.32285315,134.97,134.92,7.00336057]
[1767548705276,0.26072884,134.99,134.92,0.32976057]
[1767548705777,0.32285315,135.01,134.96,0.32976057]
[1767548706568,0.32285315,135.01,134.93,191.3436]
[1767548706569,0.32285315,135.0,134.94,7.00186057]
[1767548706766,0.32285315,135.0,134.94,0.32976057]
[1767548708777,6.99295315,134.99,134.94,0.32976057]
[1767548711679,0.32285315,134.99,134.94,0.32976057]
[1767548713576,0.32285315,135.01,134.95,0.32976057]
[1767548714579,0.32285315,135.01,134.96,0.32976057]
[1767548719183,0.32285315,135.0,134.94,0.32976057]
[1767548719887,0.32285315,135.0,134.94,7.00226057]
[1767548720781,6.99255315,135.0,134.94,7.00226057]
[1767548722483,0.32285315,134.99,134.94,7.00226057]
[1767548737895,6.6697,135.0,134.95,0.30506559]
[1767548738292,6.98928797,135.0,134.95,0.30506559]
[1767548741595,6.6697,135.0,134.95,0.30506559]
[1767548742499,0.31958797,135.01,134.95,0.30506559]
[1767548744597,6.6696,135.0,134.95,0.30506559]
[1767548745695,0.31958797,135.01,134.96,0.30506559]
[1767548745887,6.92982884,135.02,134.96,0.30506559]
[1767548746091,6.6691,135.02,134.96,0.30506559]
[1767548746492,6.98868797,135.02,134.96,0.30506559]
[1767548747798,6.98868797,135.02,134.96,6.97656559]
[1767548754301,6.98868797,135.02,134.96,0.30506559]
[1767548755218,6.6692,135.01,134.96,0.30506559]
[1767548755417,0.31958797,135.0,134.94,0.30506559]
[1767548755820,0.31958797,135.0,134.97,0.04785554]
[1767548756720,6.6703,134.99,134.97,0.04785554]
[1767548762120,6.98928797,135.0,134.97,0.04785554]
[1767548762622,6.6691,135.01,134.97,0.04785554]
[1767548762828,0.330444,135.04,134.97,0.37682879]
[1767548763128,6.02046257,135.03,134.97,0.37682879]
[1767548763427,0.330444,135.03,134.97,0.37682879]
[1767548764531,6.998644,135.03,134.97,7.04742879]
[1767548766331,0.330444,135.03,134.97,7.04742879]
[1767548767331,0.330444,135.03,134.98,6.6705]
[1767548770928,0.330444,135.03,134.98,6.99947325]
[1767548771125,94.2077,135.04,134.99,0.32897325]
[1767548771330,87.54,135.04,134.99,6.99897325]
[1767548772337,0.330444,135.05,134.99,6.99897325]
[1767548773325,0.330444,135.04,134.99,0.32897325]
[1767548776439,6.998044,135.04,134.99,0.32897325]
[1767548788745,0.330444,135.04,134.99,0.32897325]
[1767548788948,0.59117284,135.06,135.0,0.32897325]
[1767548789161,0.330444,135.08,135.0,0.32897325]
[1767548790451,0.30674348,135.11,135.04,0.33845252]
[1767548791149,0.30674348,135.11,135.05,7.00555252]
[1767548791544,0.30674348,135.11,135.05,0.33845252]
[1767548792347,0.30674348,135.13,135.07,7.00455252]
[1767548799949,0.30674348,135.13,135.07,0.33845252]
[1767548801554,0.33476087,135.12,135.04,0.31233816]
[1767548803363,0.33476087,135.11,135.04,6.97963816]
[1767548804962,0.33476087,135.11,135.05,0.31233816]
[1767548807460,0.33476087,135.11,135.05,6.97913816]
[1767548811766,0.33476087,135.1,135.04,6.6673]
[1767548811954,0.33476087,135.1,135.03,0.31233816]
[1767548812359,0.33476087,135.09,135.03,0.31233816]
[1767548813564,6.99996087,135.09,135.03,0.31233816]
[1767548823472,6.99996087,135.09,135.04,0.32520319]
[1767548844679,0.33766708,135.08,135.03,6.6681]
[1767548848981,0.33766708,135.07,135.02,6.6686]
[1767548849678,7.00386708,135.07,135.01,6.6691]
[1767548849883,103.663,135.12,135.0,87.80520319]
[1767548849884,0.33766708,135.06,135.0,0.32520319]
[1767548850188,0.33766708,135.06,134.98,0.32520319]
[1767548850982,0.32016994,135.04,134.98,0.32520319]
[1767548851286,0.32016994,135.04,134.96,0.32869789]
[1767548852289,0.32016994,135.04,134.97,0.32869789]
[1767548853583,6.98786994,135.04,134.97,6.99969789]
[1767548853785,0.32016994,135.06,134.99,0.32869789]
[1767548853991,0.32016994,135.08,135.01,0.32869789]
[1767548855591,6.98626994,135.08,135.02,0.33046326]
[1767548859193,6.99391607,135.07,135.02,0.33046326]
[1767548860288,0.32771607,135.06,135.01,6.6691]
[1767548866902,0.32771607,135.06,135.01,6.99956326]
[1767548867405,6.6662,135.07,135.02,0.33046326]
[1767548867596,8.67915478,135.08,135.03,0.33046326]
[1767548873301,8.67915478,135.08,135.02,6.6686]
[1767548874510,8.67915478,135.08,135.02,6.99906326]
[1767548877110,0.32771607,135.07,135.02,6.99906326]
[1767548885214,0.30715778,135.06,135.01,6.669]
[1767548885414,0.30715778,135.06,135.0,0.33684466]
[1767548886110,0.30715778,135.06,135.0,7.00634466]
[1767548887215,0.30715778,135.04,134.99,151.20905542]
[1767548887414,0.30715778,135.04,134.99,151.54590008]
[1767548888711,0.30715778,135.04,134.99,158.21600008]
[1767548893416,8.66059649,135.04,134.99,151.54590008]
[1767548895323,6.97545778,135.03,134.97,0.33684466]
[1767548896515,6.97545778,135.03,134.97,7.00774466]
[1767548896916,0.30715778,135.03,134.97,7.00774466]
[1767548898923,6.97525778,135.03,134.97,7.00774466]
[1767548902225,6.97525778,135.03,134.98,0.33684466]
[1767548912131,6.99100929,135.02,134.96,20.15988959]
[1767548913836,0.32240929,135.0,134.96,11.494396]
[1767548916240,191.50312884,135.04,134.97,0.33287843]
[1767548916241,0.32107142,135.03,134.97,0.33287843]
[1767548917532,6.6682,135.03,134.97,7.00367843]
[1767548917729,6.6682,135.03,134.98,0.33287843]
[1767548919532,6.98927142,135.03,134.98,0.33287843]
[1767548929642,0.32107142,135.02,134.97,6.6708]
[1767548930541,0.32107142,135.02,134.97,7.00367843]
[1767548932046,6.6682,135.03,134.96,99.014396]
[1767548932047,0.32107142,135.01,134.96,11.494396]
[1767548933747,6.99027142,135.01,134.96,11.494396]
[1767548954166,6.99027142,135.01,134.96,11.80683965]
[1767548968866,87.78072884,135.04,134.97,0.31244365]
[1767548969072,0.26072884,135.04,134.97,0.31244365]
[1767548969477,0.58447768,135.04,134.97,0.31244365]
[1767548970576,6.6682,135.03,134.98,0.30690622]
[1767548971376,6.98792769,135.03,134.98,0.30690622]
[1767548971768,0.31972769,135.02,134.96,105.99290222]
[1767548972573,6.98842769,135.02,134.96,99.32130222]
[1767548974777,6.98842769,135.02,134.96,11.80130222]
[1767548975778,7.26638331,135.04,134.97,0.31331893]
[1767548975973,0.33755447,135.06,134.97,0.31331893]
[1767548976166,0.33755447,135.06,134.99,0.31331893]
[1767548976366,0.33755447,135.06,135.0,0.31331893]
[1767548976571,0.33755447,135.06,135.0,0.36339659]
[1767548977682,7.00425447,135.06,135.0,0.36339659]
[1767548978773,7.00365447,135.08,135.01,0.31331893]
[1767548979366,7.00365447,135.08,135.02,0.31331893]
[1767548981787,0.33755447,135.11,135.02,0.31331893]
[1767548981978,103.6436,135.14,135.05,0.31331893]
[1767548981979,0.33755447,135.13,135.05,0.31331893]
[1767548982681,7.00135447,135.12,135.05,0.31331893]
[1767548983283,0.33755447,135.11,135.05,0.31331893]
[1767548983676,0.33755447,135.11,135.03,94.48101893]
[1767548983974,0.33755447,135.11,135.04,0.31331893]
[1767548984575,0.33755447,135.1,135.04,0.31331893]
[1767548994082,0.33755447,135.08,135.02,0.31331893]
[1767548995379,0.33755447,135.08,135.03,0.31331893]
[1767548997688,6.6652,135.09,135.03,0.31331893]
[1767548997986,7.00275447,135.09,135.03,0.31331893]
[1767548999288,0.33755447,135.08,135.03,0.31331893]
[1767549000793,7.00325447,135.08,135.03,0.31331893]
[1767549001388,0.33755447,135.08,135.03,0.31331893]
[1767549002285,0.32815723,135.13,135.07,0.33368134]
[1767549002589,0.32815723,135.15,135.1,2.01849501]
[1767549002890,0.32815723,135.19,135.12,2.01849501]
[1767549003385,0.32815723,135.17,135.09,0.33368134]
[1767549003986,0.32815723,135.15,135.09,0.33368134]
[1767549004582,0.32815723,135.15,135.08,6.6655]
[1767549005591,6.99045723,135.15,135.08,6.6655]
[1767549005888,6.99045723,135.15,135.08,6.99918134]
[1767549007785,0.32815723,135.14,135.08,6.99918134]
[1767549008394,0.32815723,135.13,135.08,0.33368134]
[1767549011095,0.32815723,135.15,135.08,0.33368134]
[1767549011890,6.6627,135.14,135.08,0.33368134]
[1767549012393,6.99085723,135.14,135.08,0.33368134]
[1767549015299,6.6633,135.13,135.08,0.33368134]
[1767549015594,6.99145723,135.13,135.08,0.33368134]
[1767549015894,0.32815723,135.13,135.08,0.33368134]
[1767549016600,0.32815723,135.12,135.06,0.33368134]
[1767549016797,0.32815723,135.11,135.05,6.6667]
[1767549017296,0.32815723,135.11,135.04,0.33368134]
[1767549018093,0.32815723,135.1,135.04,0.33368134]
[1767549019602,6.99285723,135.1,135.04,0.33368134]
[1767549021287,6.99285723,135.1,135.04,7.00128134]
[1767549022802,0.32815723,135.12,135.05,0.33368134]
[1767549023702,0.32815723,135.12,135.07,0.04813346]
[1767549028430,0.32815723,135.14,135.07,0.3818148]
[1767549028920,0.32815723,135.14,135.07,0.33368134]
[1767549029323,0.32815723,135.14,135.08,0.33368134]
[1767549030721,0.32815723,135.14,135.08,6.99908134]
[1767549031821,0.32815723,135.14,135.09,0.31710513]
[1767549036034,0.32815723,135.14,135.08,6.6654]
[1767549037735,0.32815723,135.14,135.08,6.98957115]
[1767549038736,0.32815723,135.14,135.09,6.6652]
[1767549040931,0.33084914,135.13,135.05,0.32417115]
[1767549041137,87.46,135.15,135.05,0.32417115]
[1767549041138,0.33084914,135.11,135.05,0.32417115]
[1767549042535,0.33084914,135.11,135.06,6.6663]
[1767549043328,0.33084914,135.12,135.07,6.6659]
[1767549043734,0.33084914,135.12,135.07,0.32417115]
[1767549044532,0.33084914,135.12,135.08,6.6656]
[1767549047334,0.33084914,135.12,135.07,0.32417115]
[1767549048336,0.33084914,135.12,135.07,6.99027115]
[1767549054050,6.6633,135.13,135.08,0.32417115]
[1767549055348,6.99414914,135.13,135.08,0.32417115]
[1767549056945,0.33084914,135.1,135.03,0.32417115]
[1767549058551,6.99564914,135.1,135.04,6.6675]
[1767549058744,6.99564914,135.1,135.04,6.99167115]
[1767549059441,191.1068,135.14,135.06,0.32417115]
[1767549059442,90.42227802,135.14,135.06,0.32417115]
[1767549059644,0.33084914,135.13,135.06,0.32417115]
[1767549060557,0.33084914,135.13,135.07,0.30772299]
[1767549061348,6.6632,135.14,135.08,0.30772299]
[1767549062255,6.6633,135.13,135.08,0.30772299]
[1767549062946,6.6638,135.12,135.06,0.30772299]
[1767549063153,0.32653232,135.12,135.02,0.30772299]
[1767549063650,0.32653232,135.11,135.02,0.30772299]
[1767549063851,0.32653232,135.11,135.05,0.30772299]
[1767549064446,0.32653232,135.11,135.03,6.97562299]
[1767549064650,0.32653232,135.09,135.03,0.30772299]
[1767549071459,0.32653232,135.08,135.02,6.6686]
[1767549071661,0.32653232,135.07,135.01,169.15284448]
[1767549072269,0.32653232,135.05,134.98,6.6702]
[1767549072569,0.32653232,135.05,134.98,0.30772299]
[1767549073573,0.32653232,135.05,135.0,6.6695]
[1767549074862,0.32653232,135.05,134.99,0.30772299]
[1767549076561,6.99373232,135.05,134.99,0.30772299]
[1767549077156,0.32653232,135.03,134.97,0.30772299]
[1767549080367,0.32653232,135.03,134.95,0.30772299]
[1767549080961,6.6687,135.02,134.95,6.97982299]
[1767549081362,6.6687,135.02,134.96,0.30772299]
[1767549082372,6.6687,135.02,134.96,6.97932299]
[1767549083271,0.32653232,135.03,134.96,6.97932299]
[1767549084675,6.99473232,135.03,134.96,6.97932299]
[1767549086379,0.32653232,135.02,134.96,6.97932299]
[1767549087372,6.99533232,135.02,134.96,6.97932299]
[1767549089279,0.32653232,135.02,134.97,0.30772299]
[1767549090381,87.81754015,135.04,134.98,0.32051171]
[1767549090588,0.31754015,135.04,134.98,0.32051171]
[1767549091672,0.31754015,135.04,134.98,6.99091171]
[1767549094290,94.42792884,135.05,134.99,6.99835933]
[1767549094475,87.76072884,135.05,135.0,0.32835933]
[1767549094679,87.5,135.05,135.0,0.32835933]
[1767549097290,94.1673,135.05,135.0,0.32835933]
[1767549097892,6.6677,135.04,135.0,0.32835933]
[1767549098888,6.6677,135.04,134.98,6.99895933]
[1767549100994,6.973204,135.03,134.98,0.32835933]
[1767549101192,6.973204,135.03,134.96,6.99945933]
[1767549101398,6.973204,135.03,134.97,0.32835933]
[1767549102394,6.973204,135.03,134.97,6.99945933]
[1767549106395,0.304904,135.03,134.98,6.99895933]
[1767549110999,0.304904,135.01,134.94,0.32835933]
[1767549112805,6.974004,135.01,134.95,6.6721]
[1767549113193,6.974004,135.01,134.94,0.32835933]